bitfinex/quotes_SOLUSD_20230402
["timestamp","ask_amount","ask_price","bid_price","bid_amount"]
[1680405788785,17.0,21.003,20.99,10.0]
[1680405788970,10.0,21.002,20.99,10.0]
[1680405789175,17.0,21.001,20.99,10.0]
[1680405789390,10.0,21.002,20.99,10.0]
[1680405789774,10.0,21.002,20.992,10.0]
[1680405789975,10.0,21.002,20.991,17.0]
[1680405790272,10.0,21.002,20.99,10.0]
[1680405790882,10.0,21.002,20.988,120.5981]
[1680405793384,10.0,21.002,20.99,10.0]
[1680405794404,10.0,21.004,20.992,10.0]
[1680405802811,10.0,21.004,20.988,120.5981]
[1680405803395,10.0,21.002,20.988,120.5981]
[1680405803808,17.0,21.001,20.988,120.5981]
[1680405804011,17.0,21.001,20.988,110.5981]
[1680405805614,27.0,20.999,20.988,110.5981]
[1680405811303,10.0,20.999,20.988,110.5981]
[1680405818127,54.1,21.0,20.989,10.0]
[1680405818338,27.05,21.0,20.989,10.0]
[1680405819818,27.05,21.0,20.988,110.5981]
[1680405820009,10.0,20.999,20.988,110.5981]
[1680405825513,27.05,21.0,20.989,10.0]
[1680405829623,10.0,21.002,20.991,10.0]
[1680405838327,10.0,21.0,20.988,110.5981]
[1680405841131,10.0,21.0,20.989,10.0]
[1680405843745,10.0,21.002,20.989,10.0]
[1680405843933,17.0,21.001,20.989,10.0]
[1680405844786,10.0,21.004,20.989,10.0]
[1680405844926,10.0,21.004,20.991,10.0]
[1680405848055,198.10440288,21.01,20.991,10.0]
[1680405848257,20.0,21.006,20.993,10.0]
[1680405848632,138.5293,21.01,20.993,10.0]
[1680405848834,27.05,21.01,20.995,10.0]
[1680405849150,27.05,21.01,20.997,10.0]
[1680405852758,27.05,21.01,20.999,10.0]
[1680405857950,27.05,21.01,20.997,10.0]
[1680405858154,10.0,21.013,20.997,10.0]
[1680405858451,9.5,21.011,20.997,10.0]
[1680405858703,17.0,21.01,20.997,10.0]
[1680405860356,16.0,21.01,20.997,10.0]
[1680405860951,10.0,21.013,20.997,10.0]
[1680405861156,10.0,21.013,20.999,10.0]
[1680405861351,10.0,21.013,21.0,17.0]
[1680405861542,10.0,21.014,21.001,10.0]
[1680405865958,10.0,21.017,21.001,10.0]
[1680405866166,37.0,21.015,21.001,10.0]
[1680405866361,20.0,21.015,21.001,10.0]
[1680405866656,19.0,21.015,21.003,10.0]
[1680405866857,10.0,21.016,21.005,10.0]
[1680405867648,10.0,21.017,21.005,10.0]
[1680405867850,17.0,21.016,21.005,10.0]
[1680405868740,10.0,21.017,21.005,10.0]
[1680405869139,10.0,21.018,21.005,10.0]
[1680405869364,10.0,21.018,21.007,10.0]
[1680405870662,10.0,21.019,21.007,10.0]
[1680405873859,10.0,21.019,21.005,10.0]
[1680405874053,10.0,21.017,21.005,10.0]
[1680405874252,17.0,21.016,21.005,10.0]
[1680405876902,10.0,21.017,21.005,10.0]
[1680405878657,10.0,21.015,21.005,10.0]
[1680405878857,17.0,21.014,21.005,10.0]
[1680405880673,17.0,21.014,21.003,10.0]
[1680405880870,17.0,21.014,21.005,10.0]
[1680405882377,17.0,21.014,21.003,10.0]
[1680405882572,17.0,21.014,21.004,20.0]
[1680405886674,17.0,21.014,21.001,10.0]
[1680405886862,30.0,21.013,21.001,10.0]
[1680405887064,27.01,21.01,21.001,10.0]
[1680405897083,20.0,21.013,21.001,10.0]
[1680405897485,26.83,21.01,20.999,113.5293]
[1680405897706,10.0,21.009,20.996,10.0]
[1680405897872,10.0,21.007,20.996,10.0]
[1680405899417,10.0,21.009,20.996,10.0]
[1680405899590,17.0,21.008,20.996,10.0]
[1680405902382,10.0,21.009,20.996,10.0]
[1680405902592,26.83,21.01,20.996,10.0]
[1680405904089,26.83,21.01,20.998,10.0]
[1680405913790,26.83,21.01,21.0,10.0]
[1680405919699,26.83,21.01,20.998,10.0]
[1680405919899,10.0,21.012,20.998,10.0]
[1680405921488,20.0,21.013,20.999,17.0]
[1680405921683,20.0,21.014,20.999,17.0]
[1680405921980,20.0,21.014,21.0,10.0]
[1680405922190,10.0,21.013,21.001,17.0]
[1680405922400,10.0,21.013,20.996,10.0]
[1680405922401,26.83,21.01,20.996,10.0]
[1680405922700,10.0,21.008,20.985,98.60811046]
[1680405923098,17.0,21.007,20.985,98.60811046]
[1680405925003,17.0,21.007,20.994,10.0]
[1680405926408,10.0,21.006,20.994,10.0]
[1680405937416,10.0,21.006,20.992,19.046296]
[1680405937605,10.0,21.006,20.994,20.0]
[1680405937988,10.0,21.006,20.992,19.046296]
[1680405937989,37.0,21.005,20.992,19.046296]
[1680405938111,10.0,21.004,20.992,19.046296]
[1680405938299,10.0,21.002,20.992,19.046296]
[1680405938692,10.0,21.002,20.989,10.0]
[1680405939397,10.0,21.002,20.986,10.0]
[1680405940512,17.0,21.003,20.986,10.0]
[1680405940817,10.0,21.004,20.989,27.0]
[1680405941146,10.0,21.002,20.989,27.0]
[1680405941300,20.0,21.003,20.989,27.0]
[1680405941901,10.0,21.002,20.989,27.0]
[1680405943606,10.0,21.002,20.989,10.0]
[1680405944612,10.0,21.0,20.989,10.0]
[1680405947119,36.83,21.0,20.989,10.0]
[1680405949923,10.0,20.999,20.988,110.32876683]
[1680405953129,10.0,20.999,20.986,10.0]
[1680405953427,10.0,20.997,20.986,10.0]
[1680405956534,10.0,20.997,20.985,19.05201]
[1680405956829,17.0,20.996,20.985,19.05201]
[1680405957316,17.0,20.996,20.982,10.0]
[1680405957513,20.0,20.995,20.984,10.0]
[1680405957720,10.0,20.993,20.977,108.571]
[1680405957930,10.0,20.989,20.977,108.571]
[1680405959023,10.0,20.989,20.978,10.0]
[1680405960430,10.0,20.989,20.977,108.571]
[1680405961539,10.0,20.987,20.977,108.571]
[1680405962235,17.0,20.988,20.977,108.571]
[1680405963133,27.05,20.99,20.978,10.0]
[1680405963326,10.0,20.994,20.979,17.0]
[1680405963532,20.0,20.993,20.98,10.0]
[1680405964035,20.0,20.995,20.98,10.0]
[1680405964623,10.0,20.994,20.98,10.0]
[1680405964933,10.0,20.992,20.98,10.0]
[1680405966529,20.0,20.993,20.98,10.0]
[1680405970142,27.0,20.992,20.98,10.0]
[1680405970327,10.0,20.992,20.98,10.0]
[1680405972937,10.0,20.99,20.98,10.0]
[1680405973143,17.0,20.989,20.979,113.5986]
[1680405975174,10.0,20.99,20.979,113.5986]
[1680405975438,17.0,20.989,20.979,113.5986]
[1680405980440,10.0,20.988,20.977,108.571]
[1680405980748,10.0,20.988,20.974,36.83]
[1680405980749,10.0,20.986,20.974,36.83]
[1680405981244,17.0,20.985,20.974,36.83]
[1680405981429,26.83,20.98,20.974,36.83]
[1680405981628,17.0,20.979,20.974,36.83]
[1680405981933,10.0,20.978,20.974,36.83]
[1680405983432,10.0,20.976,20.974,36.83]
[1680405983736,10.0,20.978,20.974,36.83]
[1680405983935,17.0,20.977,20.974,36.83]
[1680405988326,26.83,20.98,20.974,36.83]
[1680405988848,17.0,20.979,20.974,36.83]
[1680405990450,26.83,20.98,20.974,36.83]
[1680405990753,17.0,20.979,20.974,36.83]
[1680405993353,17.0,20.979,20.968,10.0]
[1680405993528,26.83,20.98,20.968,10.0]
[1680406000661,33.825,20.986,20.968,10.0]
[1680406000842,10.0,20.982,20.968,10.0]
[1680406001043,10.0,20.98,20.968,10.0]
[1680406003950,17.0,20.979,20.968,10.0]
[1680406007264,10.0,20.98,20.968,10.0]
[1680406016056,37.01,20.98,20.967,113.2661]
[1680406016258,10.0,20.978,20.967,113.2661]
[1680406016459,17.0,20.977,20.967,113.2661]
[1680406037189,17.0,20.977,20.966,108.1141]
[1680406037393,17.0,20.977,20.963,19.071455]
[1680406037394,17.16829362,20.976,20.963,19.071455]
[1680406037585,37.16829362,20.976,20.963,19.071455]
[1680406037775,24.16829362,20.975,20.959,112.6913]
[1680406037979,26.83,20.97,20.959,112.6913]
[1680406038487,10.0,20.969,20.959,112.6913]
[1680406049403,10.0,20.969,20.959,112.6913]
[1680406052605,10.0,20.973,20.96,10.0]
[1680406062002,10.0,20.973,20.962,10.0]
[1680406062203,30.0,20.974,20.962,10.0]
[1680406062408,20.0,20.974,20.962,10.0]
[1680406062709,20.0,20.975,20.962,10.0]
[1680406062920,10.0,20.974,20.962,10.0]
[1680406063116,20.0,20.973,20.962,10.0]
[1680406074215,20.0,20.973,20.96,10.0]
[1680406074425,27.0,20.972,20.96,10.0]
[1680406074614,27.0,20.972,20.959,112.6913]
[1680406074817,10.0,20.969,20.959,112.6913]
[1680406086525,26.83,20.97,20.959,112.6913]
[1680406087628,10.0,20.969,20.959,112.6913]
[1680406091231,21.67,20.97,20.959,112.6913]
[1680406091433,20.0,20.973,20.96,10.0]
[1680406091618,10.0,20.974,20.962,10.0]
[1680406091929,20.0,20.973,20.962,10.0]
[1680406095935,10.0,20.974,20.964,10.0]
[1680406096137,10.0,20.977,20.964,10.0]
[1680406106751,10.0,20.977,20.966,10.0]
[1680406112651,10.0,20.977,20.964,10.0]
[1680406112958,10.0,20.977,20.962,10.0]
[1680406112959,10.0,20.975,20.962,10.0]
[1680406113146,10.0,20.973,20.963,20.0]
[1680406114856,17.0,20.972,20.963,20.0]
[1680406116257,10.0,20.973,20.963,20.0]
[1680406116944,10.0,20.975,20.963,20.0]
[1680406119745,10.0,20.975,20.964,10.0]
[1680406124358,10.0,20.977,20.964,10.0]
[1680406124561,71.24829362,20.98,20.964,10.0]
[1680406124761,37.01,20.98,20.966,10.0]
[1680406126170,37.01,20.98,20.964,10.0]
[1680406126469,10.0,20.976,20.964,10.0]
[1680406133776,37.01,20.98,20.964,10.0]
[1680406134276,37.01,20.98,20.966,10.0]
[1680406134974,10.0,20.98,20.966,10.0]
[1680406135161,17.16829362,20.983,20.968,10.0]
[1680406142277,17.16829362,20.983,20.97,10.0]
[1680406145974,7.16829362,20.983,20.97,10.0]
[1680406156884,10.0,20.987,20.97,10.0]
[1680406157181,10.0,20.983,20.97,10.0]
[1680406162483,21.65,20.98,20.97,10.0]
[1680406167686,7.16829362,20.984,20.972,10.0]
[1680406167991,20.0,20.983,20.974,10.0]
[1680406172486,20.0,20.983,20.972,10.0]
[1680406175094,10.0,20.985,20.972,10.0]
[1680406175389,20.0,20.984,20.972,10.0]
[1680406178294,10.0,20.985,20.973,20.0]
[1680406178494,10.0,20.987,20.974,10.0]
[1680406190905,10.0,20.989,20.974,10.0]
[1680406191109,10.0,20.987,20.974,10.0]
[1680406193089,10.0,20.987,20.976,10.0]
[1680406194009,10.0,20.989,20.976,10.0]
[1680406196111,10.0,20.989,20.974,10.0]
[1680406202811,10.0,20.989,20.975,17.0]
[1680406202999,10.0,20.989,20.976,10.0]
[1680406206498,31.65,20.99,20.976,10.0]
[1680406210697,10.0,20.989,20.976,10.0]
[1680406216414,17.0,20.988,20.973,128.919]
[1680406216715,10.0,20.987,20.973,128.919]
[1680406217017,10.0,20.985,20.973,128.919]
[1680406217918,17.0,20.984,20.973,128.919]
[1680406219004,17.0,20.984,20.973,20.0]
[1680406219206,17.0,20.984,20.972,20.0]
[1680406224630,15.5,20.984,20.973,10.0]
[1680406224918,15.5,20.984,20.974,20.0]
[1680406225527,15.5,20.984,20.973,10.0]
[1680406225711,15.5,20.984,20.971,10.0]
[1680406225911,10.0,20.979,20.969,19.066674]
[1680406226931,10.0,20.977,20.969,19.066674]
[1680406228325,17.0,20.976,20.969,19.066674]
[1680406228907,10.0,20.975,20.969,19.066674]
[1680406230418,17.0,20.976,20.969,19.066674]
[1680406231129,17.0,20.976,20.966,109.8027]
[1680406232022,17.0,20.976,20.962,10.0]
[1680406232218,17.0,20.976,20.964,10.0]
[1680406232419,10.0,20.977,20.964,10.0]
[1680406232812,10.0,20.975,20.964,10.0]
[1680406233012,17.0,20.974,20.964,10.0]
[1680406246044,17.0,20.976,20.964,10.0]
[1680406268244,30.0,20.983,20.964,10.0]
[1680406268447,30.0,20.983,20.965,17.0]
[1680406268653,30.0,20.983,20.966,10.0]
[1680406272756,20.0,20.983,20.968,33.845]
[1680406272930,20.0,20.984,20.969,17.0]
[1680406273136,20.0,20.984,20.97,10.0]
[1680406275947,10.0,20.982,20.97,10.0]
[1680406278255,17.0,20.983,20.97,10.0]
[1680406279751,20.0,20.984,20.97,10.0]
[1680406279960,17.0,20.983,20.97,10.0]
[1680406280268,17.16829362,20.987,20.97,31.55]
[1680406280269,10.0,20.987,20.97,31.55]
[1680406280560,17.0,20.984,20.972,10.0]
[1680406280754,17.0,20.984,20.974,10.0]
[1680406284852,17.0,20.984,20.972,10.0]
[1680406285054,17.0,20.984,20.974,10.0]
[1680406285350,17.0,20.984,20.973,20.0]
[1680406293461,17.0,20.984,20.973,20.0]
[1680406295568,17.0,20.984,20.974,10.0]
[1680406295750,17.0,20.985,20.974,10.0]
[1680406295953,17.0,20.983,20.974,10.0]
[1680406296155,17.0,20.985,20.974,10.0]
[1680406302772,10.0,20.984,20.973,20.0]
[1680406302959,17.0,20.983,20.973,20.0]
[1680406304572,17.0,20.983,20.974,10.0]
[1680406304771,17.0,20.985,20.974,10.0]
[1680406309461,21.44,20.98,20.97,10.0]
[1680406316988,30.0,20.984,20.97,10.0]
[1680406317179,17.0,20.983,20.97,10.0]
[1680406318372,10.0,20.986,20.97,10.0]
[1680406318578,10.0,20.986,20.972,10.0]
[1680406318781,10.0,20.986,20.974,10.0]
[1680406319782,17.0,20.985,20.974,10.0]
[1680406328409,17.0,20.986,20.974,10.0]
[1680406329589,10.0,20.989,20.974,10.0]
[1680406330089,27.0,20.987,20.974,10.0]
[1680406330304,10.0,20.987,20.974,10.0]
[1680406332592,10.0,20.989,20.974,10.0]
[1680406334802,10.0,20.987,20.974,10.0]
[1680406337013,10.0,20.989,20.974,10.0]
[1680406343717,21.44,20.99,20.974,10.0]
[1680406343919,17.0,20.989,20.974,10.0]
[1680406353120,21.44,20.99,20.974,10.0]
[1680406353321,21.44,20.99,20.976,10.0]
[1680406361520,17.0,20.989,20.976,10.0]
[1680406361714,10.0,20.988,20.976,10.0]
[1680406367525,17.0,20.987,20.976,10.0]
[1680406368026,10.0,20.988,20.976,10.0]
[1680406369114,21.44,20.99,20.976,10.0]
[1680406370306,21.44,20.99,20.976,33.835]
[1680406371428,21.44,20.99,20.978,10.0]
[1680406383436,10.0,20.995,20.98,31.56]
[1680406383736,114.572,20.999,20.982,10.0]
[1680406384036,114.572,20.999,20.986,10.0]
[1680406384340,114.572,20.999,20.988,10.0]
[1680406384837,114.572,20.999,20.989,17.0]
[1680406385339,114.572,20.999,20.988,10.0]
[1680406386940,27.0,20.998,20.986,10.0]
[1680406387142,10.0,20.997,20.986,10.0]
[1680406389142,10.0,20.997,20.984,10.0]
[1680406389738,10.0,20.995,20.982,29.055003]
[1680406390247,10.0,20.993,20.982,29.055003]
[1680406393333,17.0,20.992,20.982,29.055003]
[1680406393533,26.98,20.99,20.982,19.055003]
[1680406393728,17.0,20.989,20.982,19.055003]
[1680406397145,17.0,20.989,20.979,10.0]
[1680406400435,26.98,20.99,20.979,10.0]
[1680406400635,10.0,20.991,20.979,10.0]
[1680406401742,17.16829362,20.993,20.979,10.0]
[1680406403143,10.0,20.991,20.979,10.0]
[1680406405554,10.0,20.993,20.979,10.0]
[1680406407254,10.0,20.991,20.979,10.0]
[1680406413562,10.0,20.991,20.977,110.0642]
[1680406413765,44.02,20.99,20.977,110.0642]
[1680406413944,10.0,20.989,20.977,110.0642]
[1680406414145,17.0,20.988,20.977,110.0642]
[1680406416269,17.0,20.988,20.974,10.0]
[1680406416560,10.0,20.987,20.974,10.0]
[1680406416755,17.0,20.986,20.974,10.0]
[1680406420561,10.0,20.985,20.974,10.0]
[1680406422362,17.0,20.984,20.974,10.0]
[1680406423357,17.0,20.984,20.973,10.0]
[1680406423556,17.0,20.984,20.974,20.0]
[1680406427353,17.0,20.986,20.975,10.0]
[1680406435479,17.0,20.987,20.975,10.0]
[1680406442983,98.43818554,21.0,20.975,10.0]
[1680406443280,10.0,20.989,20.975,10.0]
[1680406453697,17.0,20.99,20.975,10.0]
[1680406456704,113.6204,20.999,20.975,10.0]
[1680406456904,17.0,20.99,20.975,10.0]
[1680406457092,38.63,20.99,20.975,10.0]
[1680406457590,10.0,20.989,20.975,10.0]
[1680406478924,38.63,20.99,20.975,10.0]
[1680406479130,17.0,20.99,20.975,10.0]
[1680406491752,10.0,20.989,20.975,10.0]
[1680406491936,17.0,20.988,20.974,20.0]
[1680406492129,10.0,20.987,20.974,20.0]
[1680406492329,10.0,20.985,20.974,20.0]
[1680406493956,17.0,20.986,20.974,20.0]
[1680406494453,17.0,20.986,20.975,10.0]
[1680406497140,17.0,20.986,20.974,20.0]
[1680406497337,10.0,20.985,20.974,20.0]
[1680406497551,10.0,20.983,20.973,20.0]
[1680406497845,17.0,20.982,20.973,20.0]
[1680406498542,17.0,20.982,20.972,20.0]
[1680406501653,10.0,20.985,20.972,20.0]
[1680406501835,17.0,20.984,20.973,10.0]
[1680406502036,17.0,20.984,20.974,20.0]
[1680406503853,10.0,20.987,20.974,20.0]
[1680406504049,10.0,20.987,20.975,10.0]
[1680406505442,10.0,20.985,20.975,10.0]
[1680406511944,10.0,20.987,20.975,10.0]
[1680406534477,115.5628,20.988,20.975,10.0]
[1680406540277,10.0,20.987,20.975,10.0]
[1680406550789,115.5628,20.988,20.975,10.0]
[1680406553681,21.63,20.99,20.977,10.0]
[1680406554509,203.27372734,20.999,20.977,10.0]
[1680406554510,10.0,20.996,20.977,10.0]
[1680406554672,10.0,20.991,20.977,122.4779]
[1680406556688,10.0,20.989,20.977,122.4779]
[1680406560993,21.53,20.99,20.977,122.4779]
[1680406573504,21.53,20.99,20.979,10.0]
[1680406577112,10.0,20.995,20.979,10.0]
[1680406577417,17.0,20.992,20.979,10.0]
[1680406580416,10.0,20.995,20.979,10.0]
[1680406581513,20.0,20.993,20.979,10.0]
[1680406584412,10.0,20.998,20.981,10.0]
[1680406584593,10.0,20.998,20.983,10.0]
[1680406584797,10.0,20.998,20.985,10.0]
[1680406587314,9.0,20.998,20.985,10.0]
[1680406589300,118.5056,20.999,20.985,10.0]
[1680406594525,10.0,20.998,20.985,10.0]
[1680406606624,118.5056,20.999,20.985,10.0]
[1680406612846,118.5056,20.999,20.987,10.0]
[1680406622849,10.0,21.004,20.987,10.0]
[1680406623050,7.16829362,21.005,20.991,10.0]
[1680406623051,20.0,21.003,20.991,10.0]
[1680406623554,20.0,21.004,20.991,10.0]
[1680406637358,10.0,21.008,20.992,20.0]
[1680406637668,10.0,21.008,20.994,10.0]
[1680406638558,10.0,21.009,20.994,10.0]
[1680406643377,17.0,21.008,20.993,10.0]
[1680406643560,10.0,21.007,20.994,20.0]
[1680406643761,10.0,21.005,20.994,20.0]
[1680406646180,10.0,21.007,20.994,20.0]
[1680406646365,10.0,21.007,20.995,10.0]
[1680406649283,10.0,21.009,20.995,10.0]
[1680406652979,40.15557846,21.017,20.997,10.0]
[1680406653376,10.0,21.009,20.997,10.0]
[1680406660390,59.41131808,21.017,20.997,10.0]
[1680406661085,10.0,21.009,20.997,10.0]
[1680406663691,59.41131808,21.017,20.997,10.0]
[1680406669294,59.41131808,21.017,20.998,17.0]
[1680406669486,114.696,21.01,20.998,17.0]
[1680406669687,114.696,21.01,20.999,10.0]
[1680406670386,10.0,21.016,21.0,17.0]
[1680406670590,20.0,21.015,21.001,10.0]
[1680406670891,10.0,21.014,21.001,10.0]
[1680406671076,17.16829362,21.014,21.001,10.0]
[1680406671276,10.0,21.012,21.001,10.0]
[1680406671677,17.16829362,21.014,21.001,10.0]
[1680406671903,20.0,21.013,21.001,10.0]
[1680406672293,10.0,21.012,21.001,10.0]
[1680406672689,20.0,21.013,21.001,10.0]
[1680406672896,20.0,21.013,21.003,10.0]
[1680406673286,20.0,21.013,21.004,17.0]
[1680406674776,10.0,21.014,21.004,17.0]
[1680406674986,20.0,21.013,21.004,17.0]
[1680406676997,20.0,21.014,21.004,17.0]
[1680406679907,20.0,21.014,21.001,10.0]
[1680406680103,20.0,21.014,21.003,10.0]
[1680406685008,20.0,21.014,21.002,17.0]
[1680406695910,20.0,21.014,21.001,10.0]
[1680406696099,10.0,21.013,20.999,122.0659]
[1680406696911,10.0,21.013,20.999,112.0659]
[1680406699000,10.0,21.013,21.001,10.0]
[1680406700308,10.0,21.013,21.0,27.0]
[1680406701017,10.0,21.013,21.0,17.0]
[1680406701219,10.0,21.013,20.999,112.0659]
[1680406713816,30.0,21.014,21.0,27.0]
[1680406714128,30.0,21.014,21.001,10.0]
[1680406714430,10.0,21.013,21.001,10.0]
[1680406714930,10.0,21.013,21.003,10.0]
[1680406715623,30.0,21.014,21.003,10.0]
[1680406715624,20.0,21.014,21.003,10.0]
[1680406715825,20.0,21.014,21.004,17.0]
[1680406716126,20.0,21.015,21.003,10.0]
[1680406716335,20.0,21.015,21.004,17.0]
[1680406718529,10.0,21.014,21.004,17.0]
[1680406718718,20.0,21.013,21.004,17.0]
[1680406719230,20.0,21.013,21.003,10.0]
[1680406722427,20.0,21.015,21.003,10.0]
[1680406722621,10.0,21.014,21.003,10.0]
[1680406722819,20.0,21.013,21.003,10.0]
[1680406725235,10.0,21.017,21.005,10.0]
[1680406726425,10.0,21.017,21.006,17.0]
[1680406729539,10.0,21.018,21.006,17.0]
[1680406729754,10.0,21.019,21.006,17.0]
[1680406729943,10.0,21.02,21.007,10.0]
[1680406730247,23.779,21.027,21.009,10.0]
[1680406731149,10.0,21.025,21.009,10.0]
[1680406731357,20.0,21.023,21.011,10.0]
[1680406732156,10.0,21.022,21.011,10.0]
[1680406734157,40.0,21.023,21.011,10.0]
[1680406734452,10.0,21.022,21.011,10.0]
[1680406737356,40.0,21.023,21.011,10.0]
[1680406740863,40.0,21.023,21.013,10.0]
[1680406741057,20.0,21.023,21.015,10.0]
[1680406741443,20.0,21.023,21.016,17.0]
[1680406741644,20.0,21.023,21.017,10.0]
[1680406743248,10.0,21.038,21.017,10.0]
[1680406743454,10.0,21.038,21.019,10.0]
[1680406743754,10.0,21.038,21.021,10.0]
[1680406743965,10.0,21.038,21.023,10.0]
[1680406744147,10.0,21.038,21.025,10.0]
[1680406745449,10.0,21.039,21.027,10.0]
[1680406745961,10.0,21.039,21.025,10.0]
[1680406746648,10.0,21.037,21.025,10.0]
[1680406748764,10.0,21.035,21.025,10.0]
[1680406749069,10.0,21.035,21.023,10.0]
[1680406749365,10.0,21.035,21.024,20.0]
[1680406749976,10.0,21.035,21.021,230.8196]
[1680406749977,44.16829362,21.034,21.021,230.8196]
[1680406750170,10.0,21.033,21.021,230.8196]
[1680406750349,17.16829362,21.033,21.021,230.8196]
[1680406754771,10.0,21.031,21.021,230.8196]
[1680406756271,10.0,21.031,21.021,117.5215]
[1680406763377,10.0,21.029,21.012,10.0]
[1680406763570,17.0,21.028,21.013,37.0]
[1680406763771,10.0,21.027,21.014,10.0]
[1680406782885,10.0,21.025,21.013,10.0]
[1680406783194,10.0,21.025,21.014,20.0]
[1680406786093,10.0,21.027,21.014,20.0]
[1680406786278,17.0,21.026,21.015,10.0]
[1680406789194,17.0,21.026,21.014,20.0]
[1680406792894,10.0,21.025,21.014,20.0]
[1680406800709,17.0,21.026,21.014,20.0]
[1680406802313,10.0,21.025,21.014,20.0]
[1680406804496,10.0,21.023,21.011,110.0633]
[1680406804896,17.0,21.022,21.011,110.0633]
[1680406805314,10.0,21.023,21.011,110.0633]
[1680406805612,10.0,21.023,21.012,10.0]
[1680406807913,20.0,21.024,21.012,10.0]
[1680406808115,17.0,21.023,21.012,10.0]
[1680406822523,17.0,21.023,21.011,120.0633]
[1680406822524,10.0,21.022,21.01,114.5571]
[1680406822731,21.51,21.02,21.01,114.5571]
[1680406823027,10.0,21.019,21.01,114.5571]
[1680406823226,17.0,21.018,21.01,114.5571]
[1680406826531,17.0,21.018,21.003,10.0]
[1680406826714,17.0,21.018,21.005,10.0]
[1680406830535,10.0,21.019,21.005,10.0]
[1680406830835,10.0,21.017,21.005,10.0]
[1680406850559,17.0,21.016,21.005,10.0]
[1680406854462,17.0,21.016,21.003,10.0]
[1680406854751,17.0,21.016,21.005,10.0]
[1680406876464,17.0,21.016,21.003,10.0]